Cogmind - Beta 14 @@@ ROGUE MODE // 2024.08.23 @ 19:54:56 Player: THN-L0C Result: Destroyed by D-53 Grenadier with Mini Grenade Launcher Performance ------------- Evolutions (0) 0 Regions Visited (4) 800 Robots Destroyed (31) 155 Value Destroyed (670) 670 Prototype IDs (12) 240 Alien Tech Used (0) 0 Bonus (53) 53 TOTAL SCORE: 1918 Bonus ------- Follower Combat Kills 120 Friendly Fire -67 Cogmind --------- Core Integrity 0/250 Matter 285/300 Energy 265/265 System Corruption 0% Temperature Cool (0) Movement Walking (120) Location -9/Recycling Parts ------- > --- POWER (1) -------- Improved Ion Engine > --- PROPULSION (2) --- Improved Aluminum Leg Improved Aluminum Leg > --- UTILITY (2) ------ (None) > --- WEAPON (2) ------- Riot Gun Battle Cannon > --- INVENTORY (5) ---- Rocket Launcher Peak State ------------ > --- POWER ------------ Subdweller Power Source > --- PROPULSION ------- Improved Aluminum Leg Improved Aluminum Leg > --- UTILITY ---------- Large Storage Unit Makeshift Light Armor Plating > --- WEAPON ----------- Riot Gun Rocket Launcher > --- INVENTORY -------- Improved Aluminum Leg Flightbrick Large Matter Pod Sensor Array Terrain Scanner Seismic Detector Core Shielding Makeshift Light Armor Plating Scrap Shield Improved Assault Rifle Battle Cannon [Rating: 21] Favorites ----------- Power Ion Engine Engine Ion Engine Propulsion Improved Aluminum Leg Treads Light Treads Leg Improved Aluminum Leg Utility Large Storage Unit Device Sensor Array Storage Large Storage Unit Protection Makeshift Light Armor Plating Weapon Improved Assault Rifle Energy Gun Riot Gun Ballistic Gun Improved Assault Rifle Ballistic Cannon Battle Cannon Launcher Rocket Launcher Special Weapon Mining Laser Build | -11 -10 -10 -10 -9 ------- Run | Yrd Mat Min Sub Rec Slots Evolved . | . . . . . Power . | . . . . . Propulsion . | . . . . . Utility . | . . . . . Weapon . | . . . . . Parts Attached 64 | 7 13 1 36 7 Power 6 | 1 1 . 3 1 Engine 6 | 1 1 . 3 1 Core . | . . . . . Reactor . | . . . . . Propulsion 5 | 2 2 . 1 . Treads 2 | 2 . . . . Leg 3 | . 2 . 1 . Wheel . | . . . . . Hover . | . . . . . Flight . | . . . . . Utility 33 | 2 6 1 22 2 Device 14 | 1 2 . 10 1 Storage 4 | 1 2 . 1 . Processor . | . . . . . Hackware . | . . . . . Protection 15 | . 2 1 11 1 Artifact . | . . . . . Weapon 20 | 2 4 . 10 4 Energy Gun 1 | . . . 1 . Energy Cannon . | . . . . . Ballistic Gun 6 | 2 3 . 1 . Ballistic Cannon 6 | . . . 4 2 Launcher 6 | . . . 4 2 Special Weapon 1 | . 1 . . . Impact Weapon . | . . . . . Slashing Weapon . | . . . . . Piercing Weapon . | . . . . . Special Melee Weapon . | . . . . . Unidentified Prototypes 1 | . 1 . . . Parts Lost 2 | . . . 1 1 Power 1 | . . . 1 . Propulsion . | . . . . . Utility 1 | . . . . 1 Weapon . | . . . . . Highest Loss Streak 1 | . . . 1 1 To Critical Strikes . | . . . . . Average Slot Usage (%) 93 | . 99 100 92 87 Engine 10 | . 14 14 7 14 Treads 2 | . 18 . . . Leg 25 | . 9 28 28 28 Device 6 | . 8 3 7 4 Storage 12 | . 14 14 13 5 Protection 7 | . 5 10 7 6 Energy Gun 4 | . . . 4 14 Ballistic Gun 12 | . 27 28 8 . Ballistic Cannon 4 | . . . 4 10 Launcher 6 | . . . 10 3 Peak Build Rating 21 | 7 14 15 21 21 Average Rating 14 | 5 9 14 15 15 On Entrance 11 | . 7 14 15 21 Naked Turns . | . . . . . Heaviest Build 37 | 13 32 32 36 37 Greatest Support 40 | 40 40 26 26 26 Greatest Overweight (x) 2 | . 2 2 1 1 Average Overweight (x) . | . . 1 . . Largest Inventory Capacity 15 | 8 15 15 15 15 Average Capacity 13 | 7 14 15 14 8 Most Carried 15 | 1 14 15 15 15 Average Carried 11 | . 8 14 14 6 Final Capacity 15 | 8 15 15 15 5 Final Carried 15 | 1 13 15 15 1 Class Distribution -------------------- 99% | Mutant Dominant Class ---------------- Mutant | -10/Materials Mutant | -10/Mines Mutant | -10/Subcaves Mutant | -9/Recycling Resources | -11 -10 -10 -10 -9 ----------- Run | Yrd Mat Min Sub Rec Matter Collected 1690 | 284 102 340 719 245 Remotely . | . . . . . Salvage Created 880 | 100 170 236 192 182 Parts 60 | 8 16 14 14 8 Haulers Intercepted . | . . . . . Recyclers Shooed 2 | . . 2 . . Parts Field Recycled . | . . . . . Retrieved Matter . | . . . . . Parts Self-Destructed 8 | . . . 8 . Prevented . | . . . . . Kills | -11 -10 -10 -10 -9 ------- Run | Yrd Mat Min Sub Rec Combat Hostiles Destroyed 27 | . 10 8 6 3 Guns 20 | . 10 8 1 1 Cannons 4 | . . . 2 2 AOE 3 | . . . 3 . Classes Destroyed 6 | 2 2 . 2 . Tunneler 1 | 1 . . . . Recycler 3 | 1 . 1 . 1 Swarmer 15 | . 9 6 . . Grunt 3 | . 1 2 . . Sentry 4 | . . . 1 3 Subdweller 5 | . . . 5 . Best Kill Streak 4 | 2 3 4 1 2 Combat Bots Only 3 | . 3 3 1 2 Max Kills in Single Turn 2 | 1 1 2 1 1 Gunslinging . | . . . . . Exploded 1 | . . . 1 . Melee . | . . . . . Uniques/NPCs Destroyed . | . . . . . Combat | -11 -10 -10 -10 -9 -------- Run | Yrd Mat Min Sub Rec Hostile Shots Fired 145 | . 59 42 24 20 Missed 51 | . 19 14 14 4 Damage Taken 1336 | . 346 262 426 302 Core 250 | . 61 34 115 40 Absorbed by Shields . | . . . . . Redirected to Shielding 59 | . 34 19 6 . Regen/Repaired (Parts) 34 | . 34 . . . Core Remaining (%) 100 | 100 . . . . Volleys Fired 152 | 7 46 20 61 18 Largest 2 | 2 2 2 2 2 Hottest 100 | 40 100 46 89 89 Shots Fired 213 | 14 63 40 72 24 Gun 133 | 14 56 40 17 6 Cannon 53 | . . . 45 8 Launcher 20 | . . . 10 10 Special 7 | . 7 . . . Kinetic 176 | 14 56 40 58 8 Thermal 7 | . 7 . . . Explosive 20 | . . . 10 10 Electromagnetic 10 | . . . 4 6 Robot Hit Streak 27 | 8 11 10 27 10 Robot Miss Streak 5 | 1 4 5 1 2 Penetration Max . | . . . . . Secondary Targets 1 | . 1 . . . Max Gunslinging Chain 1 | . 1 . . . Shots Hit Robots 106 | 11 35 23 26 11 Core Hits 53 | 5 15 11 12 10 Critical Kills . | . . . . . Critical Parts Destroyed . | . . . . . Critical Strikes 2 | . . . 1 1 Blast 2 | . . . 1 1 Melee Attacks . | . . . . . Impact . | . . . . . Slashing . | . . . . . Piercing . | . . . . . Sneak Attacks . | . . . . . Combat Hostiles . | . . . . . Follow-up Attacks . | . . . . . Damage Inflicted 2024 | 82 285 398 896 363 Guns 1042 | 82 274 384 222 80 Cannons 286 | . . . 151 135 Explosions 671 | . . . 523 148 Melee . | . . . . . Ramming 25 | . 11 14 . . Kinetic 1206 | 82 274 384 331 135 Thermal . | . . . . . Explosive 671 | . . . 523 148 Electromagnetic 122 | . . . 42 80 Impact . | . . . . . Slashing . | . . . . . Piercing . | . . . . . Highest Corruption . | . . . . . Average Corruption . | . . . . . Corruption Purged . | . . . . . Corruption Blocked . | . . . . . Overload Shots . | . . . . . Overflow Damage . | . . . . . Projectiles . | . . . . . Explosions . | . . . . . Melee . | . . . . . Knockbacks 4 | . . . 4 . Impact . | . . . . . Kinetic 4 | . . . 4 . Secondary . | . . . . . Self-Inflicted Damage 23 | . . . 23 . Shots 1 | . . . 1 . Rammed 2 | . 2 . . . Targets Rammed 7 | . 2 5 . . Kicked 5 | . . 5 . . Crushed . | . . . . . Highest Temperature 138 | . 40 22 3 138 Average Temperature 27 | . 13 9 3 51 Received Heat Transfer 243 | . 72 57 51 63 Siege Activations . | . . . . . Robots Corrupted . | . . . . . Combat Hostiles . | . . . . . Parts Fried . | . . . . . Impact Corruptions . | . . . . . Robots Melted . | . . . . . Combat Hostiles . | . . . . . Parts Melted . | . . . . . Heat Transferred . | . . . . . Parts Sabotaged . | . . . . . Parts Stolen . | . . . . . Parts Stripped . | . . . . . Power Chain Reactions . | . . . . . Alert | -11 -10 -10 -10 -9 ------- Run | Yrd Mat Min Sub Rec Peak Influence 268 | 10 268 131 . 87 Initial 6 | . 6 1 . . Average 40 | 2 85 33 . 12 Maximum Alert Level 1 | . 1 . . . Low Security (%) 97 | 100 91 100 . 100 Level 1 2 | . 8 . . . Level 2 . | . . . . . Level 3 . | . . . . . Level 4 . | . . . . . Level 5 . | . . . . . High Security . | . . . . . Max Security . | . . . . . Squads Dispatched 2 | . 2 . . . Investigation 1 | . 1 . . . Extermination . | . . . . . Reinforcement 1 | . 1 . . . Assault . | . . . . . Garrison . | . . . . . Intercept . | . . . . . Searches Triggered . | . . . . . Construction Impeded . | . . . . . Haulers Reinforced . | . . . . . Active Scanning Responses . | . . . . . Cargo Convoy Interrupts . | . . . . . Stealth | -11 -10 -10 -10 -9 --------- Run | Yrd Mat Min Sub Rec Distress Signals . | . . . . . Communications Jammed . | . . . . . Distress Signals . | . . . . . Times Spotted 55 | . 22 11 18 4 Peak Tracking Total 6 | . 3 3 6 2 Tactical Retreats 5 | . 2 2 1 . Traps | -11 -10 -10 -10 -9 ------- Run | Yrd Mat Min Sub Rec Traps Triggered 1 | . . . 1 . Indirectly . | . . . . . Trap Hack Attempts . | . . . . . Triggered . | . . . . . Disarmed . | . . . . . Reprogrammed . | . . . . . Reused . | . . . . . Traps Extracted . | . . . . . Installed . | . . . . . Triggered . | . . . . . Machines | -11 -10 -10 -10 -9 ---------- Run | Yrd Mat Min Sub Rec Machines Disabled 1 | . . . 1 . Max in Single Turn 1 | . . . 1 . Machines Repaired . | . . . . . Machines Dismantled . | . . . . . Machines Sabotaged . | . . . . . Overloaded Fab Kills . | . . . . . Hacking | -11 -10 -10 -10 -9 --------- Run | Yrd Mat Min Sub Rec Machines Accessed 13 | . 7 . 3 3 Terminals 8 | . 6 . . 2 Fabricators . | . . . . . Repair Stations 1 | . 1 . . . Recycling Units 1 | . . . . 1 Scanalyzers . | . . . . . Garrison Access . | . . . . . Total Hacks 39 | . 22 . 12 5 Successful 21 | . 7 . 12 2 Failed 17 | . 14 . . 3 Catastrophic 2 | . 2 . . . Database Lockouts 1 | . 1 . . . Manual 20 | . 16 . . 4 Terminals 23 | . 20 . . 3 Fabricators . | . . . . . Repair Stations 2 | . 2 . . . Recycling Units 2 | . . . . 2 Scanalyzers . | . . . . . Garrison Access . | . . . . . Terminal Hacks 15 | . 2 . 12 1 Record 9 | . . . 9 . Robot Analysis 1 | . 1 . . . Open Door 1 | . . . 1 . Zone Layout 2 | . 1 . . 1 Derelict Proto ID Bank 1 | . . . 1 . Release Object 1 | . . . 1 . Fabricator Hacks . | . . . . . Repair Station Hacks 2 | . 2 . . . Scan Component 1 | . 1 . . . Repair 1 | . 1 . . . Recycling Unit Hacks . | . . . . . Scanalyzer . | . . . . . Garrison Access Hacks . | . . . . . Unauthorized Hacks 4 | . 3 . . 1 Terminals 3 | . 3 . . . Botnet 3 | . 3 . . . Fabricators . | . . . . . Repair Stations . | . . . . . Recycling Units 1 | . . . . 1 Mask 1 | . . . . 1 Scanalyzers . | . . . . . Garrison Access . | . . . . . Data Cores Recovered . | . . . . . Used . | . . . . . Hacking Detections 9 | . 7 . . 2 Full Trace Events 1 | . 1 . . . Feedback Events . | . . . . . Feedback Blocked . | . . . . . Robot Schematics Acquired . | . . . . . Robots Built . | . . . . . Authchips . | . . . . . Time . | . . . . . Total Robot Build Rating . | . . . . . Part Schematics Acquired . | . . . . . Parts Built . | . . . . . Authchips . | . . . . . Time . | . . . . . Total Part Build Rating . | . . . . . Parts Repaired 1 | . 1 . . . Time 26 | . 26 . . . Parts Recycled . | . . . . . Recycled Matter . | . . . . . Retrieved Matter . | . . . . . Retrieved Components . | . . . . . Parts Scanalyzed . | . . . . . Part Schematics Acquired . | . . . . . Parts Damaged . | . . . . . Bothacking | -11 -10 -10 -10 -9 ------------ Run | Yrd Mat Min Sub Rec Used RIF Installer . | . . . . . Robots Hacked . | . . . . . Non-combat . | . . . . . Combat . | . . . . . Robot Hacks Applied . | . . . . . Relay Couplers Released . | . . . . . Fabnet Peak Effective % . | . . . . . Robots Rewired 6 | . . . 1 5 Allies Hacked . | . . . . . Hacks Repelled . | . . . . . Allies | -11 -10 -10 -10 -9 -------- Run | Yrd Mat Min Sub Rec Total Allies 9 | . . 3 1 5 Largest Group 5 | . . 3 3 5 Highest-Rated Group 72 | . . 40 40 72 Highest-Rated Ally 34 | . . 16 19 34 Total Orders 2 | . . . 2 . STAY 1 | . . . 1 . FOLLOW 1 | . . . 1 . Ally Attacks 29 | . . . 23 6 Total Damage 350 | . . . 260 90 Kills 4 | . . . 4 . Allies Corrupted . | . . . . . Allies Melted . | . . . . . Intel | -11 -10 -10 -10 -9 ------- Run | Yrd Mat Min Sub Rec Robot Analysis Total 1 | . 1 . . . Derelict Logs Recovered 4 | . . 2 2 . Drone Launches . | . . . . . Drone Recoveries . | . . . . . Exploration | -11 -10 -10 -10 -9 ------------- Run | Yrd Mat Min Sub Rec Turns Passed 8761 | 146 1276 1285 4574 1480 Spaces Moved 3663 | 75 581 566 1744 697 Core 4 | 4 . . . . Treads 505 | 71 434 . . . Legs 3154 | . 147 566 1744 697 Wheels . | . . . . . Hover . | . . . . . Flight . | . . . . . Fastest Speed 50 | 50 160 190 120 120 Average Speed 187 | 154 185 211 185 179 Slowest Speed 260 | 160 260 260 190 190 Overloaded Moves . | . . . . . Propulsion Burnouts . | . . . . . Robots Hopped . | . . . . . Cave-ins Triggered . | . . . . . Exploration Rate (%) 66 | 4 86 87 68 88 Regions Visited 4 Branch Regions 3 Pre-discovered Areas 2 | . . 2 . . Known Exits Taken 1 | . . . 1 . Unknown Exits Taken 3 | 1 1 1 . . Scrap Searched 7 | . . 3 4 . Spaces Dug 30 | . 7 . 1 22 Terrain Destroyed 151 | . 7 . 43 101 Melee . | . . . . . Projectile 9 | . 7 . 1 1 AOE 142 | . . . 42 100 Terrain Rammed . | . . . . . Walls Destroyed . | . . . . . Machines Disabled . | . . . . . Actions | -11 -10 -10 -10 -9 --------- Run | Yrd Mat Min Sub Rec Total 5305 | 91 710 609 2993 902 Wait 1325 | 2 52 14 1124 133 Move 3659 | 74 580 565 1743 697 Hop . | . . . . . Pick Up 33 | 1 13 3 15 1 Fast Attach 11 | 7 . . 4 . Attach 2 | . 1 . . 1 Detach 1 | . . . . 1 Swap 51 | . 12 1 32 6 Drop 21 | . 4 1 13 3 Fire 152 | 7 46 20 61 18 Melee . | . . . . . Ram . | . . . . . Kick 5 | . . 5 . . Crush 2 | . 2 . . . Escape Stasis . | . . . . . Rewire 43 | . . . 1 42 Trap . | . . . . . Miscellaneous . | . . . . . Route ------- -11/Scrapyard -10/Materials (discovered 4 exits: [*Mat x3] / [*Min]) -10/Mines (discovered 3 exits: [*Mat x2] / *Sub) -10/Subcaves (discovered 3 exits: [*Mat x2] / *Rec) -9/Recycling (discovered 1 exit: [*Fac]) History --------- Turn | Location | Event 41 | -11/Scrapyard | Discovered new exit (range 13) 147 | -11/Scrapyard | Entered Materials 311 | -10/Materials | Build established: Mutant 489 | -10/Materials | Discovered new exit (range 8) 513 | -10/Materials | Discovered new exit (range 10) 916 | -10/Materials | Central database locked down 1169 | -10/Materials | Repaired Propulsion Shielding 1233 | -10/Materials | Discovered new exit (range 11) 1285 | -10/Materials | Discovered new exit (range 15) 1423 | -10/Materials | Entered Mines 1486 | -10/Mines | Learned Materials trap positions 1647 | -10/Mines | Discovered new exit (range 9) 2016 | -10/Mines | Learned location of Zion (-6) 2188 | -10/Mines | Learned location of Storage (-9) 2346 | -10/Mines | Assisted by bots powering up and referring to "LRC-V3" 2597 | -10/Mines | Discovered new exit (range 6) 2654 | -10/Mines | Received a Rocket Launcher from a helpful Derelict 2659 | -10/Mines | Discovered new exit (range 9) 2708 | -10/Mines | Entered Subcaves 2708 | -10/Subcaves | Accompanied by 3 allies 2905 | -10/Subcaves | Identified exit to Recycling 3431 | -10/Subcaves | Shifting Twisted Machinery released Sub. Machine Gun 3446 | -10/Subcaves | Shifting Twisted Machinery released Piercing Trap 3493 | -10/Subcaves | Core integrity fell below 50% 3498 | -10/Subcaves | Discovered new exit (range 7) 3660 | -10/Subcaves | Learned Materials interactive machine intel 3695 | -10/Subcaves | Visited 4L-MR0's lab 4563 | -10/Subcaves | A swath of the cavern ceiling suddenly collapsed 5665 | -10/Subcaves | Disturbed a concealed Subdweller 6156 | -10/Subcaves | Discovered new exit (range 9) 6385 | -10/Subcaves | Core integrity fell below 20% 6918 | -10/Subcaves | Found Flightbrick 7282 | -10/Subcaves | Entered Recycling 7283 | -9/Recycling | Met a Zionite searching for Scraptown 8122 | -9/Recycling | Discovered new exit (range 15) 8762 | -9/Recycling | Destroyed by D-53 Grenadier with Mini Grenade Launcher Last Messages --------------- 08705_ T-07 Excavator rewired. 08708_ Attempting to rewire U-05 Engineer. 08715_ U-05 Engineer rewired. 08718_ Acquired 46 matter. 08728_ Attempting to rewire T-07 Excavator. 08728_ T-07 Excavator is broken beyond repair. 08749_ D-53 Grenadier springs to life. 08749_ Excavator 2a destroyed. 08749_ G-34 Mercenary destroyed. 08749_ Engineer 2b destroyed. 08749_ B-36 Bruiser destroyed. 08750_ Attempting to rewire L-31 Rogue. 08750_ P-60 Hacker destroyed. 08752_ Engineer 2a destroyed. 08754_ Attempting to rewire L-31 Rogue. 08754_ Y-45 Defender destroyed. 08754_ L-31 Rogue destroyed. 08755_ The unstable cave ceiling collapses. 08756_ T-07 Excavator destroyed. 08757_ The unstable cave ceiling collapses. Map ----- +----------------------------------------------------+ | ????###+###########?# !## | | ??????# #???????????# !!## | | ??????# ### #%%%##### #### | | ??????# + | | ??????# ##### ###### | | ??????# #???# #????? | | ??????# #???# #???## | | ??????# #+#####+#???# | | ??????# +[ #???# | | ??????#### #= !#???# | | ?????????# # % /#??## | | ?????????# # %! #??# | | ?????????## ## # % #??# | | ?????????# # ! #??# | | ??####### #??## | | ??# l d % #???# | | ??# d # ?# | | ??# k # # | | ??# [ ### # | | ??# t ###/##### ### | | ??# =g | | ??# ! == | | ??# # | | ??# b! |!## ###### | | ??# *d #?# # #?# | | ??#g @% #?# #????? | | ??# s! #?# #????? | | ??##### ##?##"Y"####????? | | ??????## ##???#"""#???????? | | ????????######????#####???????? | | | | | | | | | | | | | | | | | | | | | | | | | | | | | | | | | | | | | | | | | +----------------------------------------------------+ Best States ------------- Heat Dissipation 25 Energy Generation 15 Energy Capacity 265 Matter Stores 300 Matter Capacity 300 Sight Range 16 Robot Scan Range 14 Terrain Scan Range 14 Terrain Scan Density 10 Armor Coverage 800 Core Shielding 20 Propulsion Shielding 33 Evasion (%) 55 Recoil Reduction 2 Item Schematics ----------------- None Robot Schematics ------------------ None Fabricated ------------ Nothing Alien Tech Used ----------------- None Achievements -------------- None Challenges ------------ None Game ------ Seed HeartEtherialSheargun Manual? 0 Play Time 00:40:21 Cumulative 112.2 hours Start 2024.08.23 @ 19:14:42 End 2024.08.23 @ 19:54:56 Sessions 1 Manual Loads 0 Difficulty Rogue Special Mode None Game No. 93 Rogue 93 Adventurer 0 Explorer 0 Win Type - Total 0 Types 0/0/0/0/0/0/0/0/0 Lore% 50 Gallery% 58 Achievement% 48 Wizard Run 0 Options --------- Layout 2 ASCII 0 Keyboard 1 Movement Vi Keybinds 0 Fullscreen 1 Font 32/SmallcapsGlow Map View 77x44 Zoom Use 0% Tactical HUD 1 Map Filters NONE Filters NONE Steam 1 RUN: 68e3f517-2f9e-44c1-96ee-2d376e543380